Cogmind - Beta 13 @@@ ROGUE MODE // 2024.04.01 @ 20:12:17 Player: SuperDrops Result: Core destroyed Performance ------------- Evolutions (0) 0 Regions Visited (2) 400 Robots Destroyed (25) 125 Value Destroyed (601) 601 Prototype IDs (0) 0 Alien Tech Used (0) 0 Bonus (0) 0 TOTAL SCORE: 1126 Bonus ------- None Cogmind --------- Core Integrity 0/250 Matter 322/450 Energy 125/125 System Corruption 0% Temperature Cool (0) Movement Rolling (140) Ox4 Location -10/Mines Parts ------- > --- POWER (1) -------- Light Ion Engine > --- PROPULSION (2) --- Wheel Wheel > --- UTILITY (2) ------ Huge Storage Unit Large Matter Pod > --- WEAPON (2) ------- Particle Gun > --- INVENTORY (25) --- Light Treads Light Treads Light Treads Aluminum Leg Aluminum Leg Wheel Wheel Wheel Small Storage Unit Medium Storage Unit High-capacity Storage Unit Medium Matter Pod (0) Sensor Array Medium Laser Particle Gun Particle Gun Assault Rifle Light Assault Rifle Mini Grenade Launcher Mini Grenade Launcher Datajack Hammer Hammer Hammer Hammer Peak State ------------ > --- POWER ------------ Light Nuclear Core > --- PROPULSION ------- Wheel Compact Wheel > --- UTILITY ---------- Huge Storage Unit > --- WEAPON ----------- Mini Grenade Launcher Mini Grenade Launcher > --- INVENTORY -------- Ion Engine Light Ion Engine Light Treads Light Treads Light Treads Aluminum Leg Aluminum Leg Small Storage Unit Medium Laser Particle Gun Particle Gun Particle Gun Particle Gun Particle Gun Assault Rifle Mini Grenade Launcher Mini Grenade Launcher Datajack [Rating: 12] Favorites ----------- Power Light Ion Engine Engine Light Ion Engine Power Core Light Nuclear Core Propulsion Wheel Treads Light Treads Wheel Wheel Utility Huge Storage Unit Storage Huge Storage Unit Weapon Particle Gun Energy Gun Particle Gun Ballistic Gun Assault Rifle Launcher Mini Grenade Launcher Build | -11 -10 -10 ------- Run | Yrd Mat Min Slots Evolved . | . . . Power . | . . . Propulsion . | . . . Utility . | . . . Weapon . | . . . Parts Attached 33 | 6 20 7 Power 6 | 1 4 1 Engine 5 | 1 3 1 Core 1 | . 1 . Reactor . | . . . Propulsion 11 | 2 5 4 Treads 4 | 2 . 2 Leg . | . . . Wheel 7 | . 5 2 Hover . | . . . Flight . | . . . Utility 6 | 1 3 2 Device . | . . . Storage 6 | 1 3 2 Processor . | . . . Hackware . | . . . Protection . | . . . Artifact . | . . . Weapon 10 | 2 8 . Energy Gun 5 | 1 4 . Energy Cannon . | . . . Ballistic Gun 1 | 1 . . Ballistic Cannon . | . . . Launcher 4 | . 4 . Special Weapon . | . . . Impact Weapon . | . . . Slashing Weapon . | . . . Piercing Weapon . | . . . Special Melee Weapon . | . . . Unidentified Prototypes . | . . . Parts Lost 9 | . 6 3 Power 3 | . 2 1 Propulsion 2 | . 1 1 Utility . | . . . Weapon 4 | . 3 1 Highest Loss Streak 4 | . 4 2 To Critical Strikes . | . . . Average Slot Usage (%) 82 | . 86 79 Engine 7 | . 9 6 Core 1 | . 4 . Treads 2 | . 3 1 Wheel 21 | . 23 18 Storage 22 | . 16 28 Energy Gun 16 | . 8 22 Ballistic Gun 4 | . 8 . Launcher 4 | . 10 . Naked Turns . | . . . Heaviest Build 94 | 12 94 94 Greatest Support 40 | 40 40 40 Greatest Overweight (x) 28 | . 28 8 Average Overweight (x) 3 | . 2 5 Largest Inventory Capacity 25 | 8 25 25 Average Capacity 23 | 6 23 24 Most Carried 25 | 6 23 25 Average Carried 17 | 3 13 22 Final Capacity 25 | 8 25 25 Final Carried 25 | 6 21 25 Class Distribution -------------------- 100% | Mutant Dominant Class ---------------- Mutant | -10/Materials Mutant | -10/Mines Resources | -11 -10 -10 ----------- Run | Yrd Mat Min Matter Collected 815 | 247 281 287 Remotely . | . . . Salvage Created 685 | . 485 200 Parts 48 | . 29 19 Haulers Intercepted . | . . . Recyclers Shooed 1 | . . 1 Parts Field Recycled . | . . . Retrieved Matter . | . . . Parts Self-Destructed . | . . . Prevented . | . . . Kills | -11 -10 -10 ------- Run | Yrd Mat Min Combat Hostiles Destroyed 18 | . 10 8 Guns 12 | . 6 6 AOE 4 | . 4 . Classes Destroyed 6 | . 4 2 Worker 2 | . . 2 Builder 1 | . 1 . Recycler 2 | . 2 . Watcher 2 | . 2 . Swarmer 6 | . . 6 Grunt 12 | . 10 2 Best Kill Streak 5 | . 5 5 Combat Bots Only 5 | . 5 3 Max Kills in Single Turn 1 | . 1 1 Gunslinging . | . . . Exploded 1 | . 1 . Melee . | . . . Uniques/NPCs Destroyed . | . . . Combat | -11 -10 -10 -------- Run | Yrd Mat Min Hostile Shots Fired 102 | . 59 43 Missed 20 | . 14 6 Damage Taken 1046 | . 715 331 Core 252 | . 146 106 Absorbed by Shields . | . . . Core Remaining (%) 100 | 100 . . Volleys Fired 72 | . 50 22 Largest 2 | . 2 2 Hottest 130 | . 130 130 Shots Fired 135 | . 93 42 Gun 115 | . 73 42 Cannon . | . . . Launcher 20 | . 20 . Special . | . . . Kinetic 36 | . 36 . Thermal 61 | . 19 42 Explosive 20 | . 20 . Electromagnetic 18 | . 18 . Robot Hit Streak 11 | . 11 10 Robot Miss Streak 4 | . 4 4 Penetration Max . | . . . Secondary Targets 2 | . . 2 Max Gunslinging Chain 1 | . . 1 Shots Hit Robots 80 | . 59 21 Core Hits 33 | . 23 10 Critical Kills . | . . . Critical Parts Destroyed . | . . . Critical Strikes 4 | . 1 3 Burn 3 | . . 3 Corrupt 1 | . 1 . Melee Attacks . | . . . Impact . | . . . Slashing . | . . . Piercing . | . . . Sneak Attacks . | . . . Combat Hostiles . | . . . Follow-up Attacks . | . . . Damage Inflicted 1761 | . 1362 399 Guns 1042 | . 653 389 Cannons . | . . . Explosions 709 | . 709 . Melee . | . . . Ramming 10 | . . 10 Kinetic 282 | . 282 . Thermal 598 | . 209 389 Explosive 707 | . 707 . Electromagnetic 164 | . 164 . Impact . | . . . Slashing . | . . . Piercing . | . . . Highest Corruption . | . . . Average Corruption . | . . . Corruption Purged . | . . . Corruption Blocked . | . . . Overload Shots . | . . . Overflow Damage 22 | . 22 . Projectiles . | . . . Explosions 22 | . 22 . Melee . | . . . Knockbacks . | . . . Impact . | . . . Kinetic . | . . . Secondary . | . . . Self-Inflicted Damage 157 | . 152 5 Shots 5 | . 5 . Rammed 1 | . . 1 Targets Rammed 1 | . . 1 Kicked . | . . . Crushed . | . . . Highest Temperature 514 | . 181 514 Average Temperature 162 | . 59 250 Received Heat Transfer 354 | . 321 33 Effects 4 | . . 4 Energy Bleed 1 | . . 1 Short Circuit 1 | . . 1 Damage (minor) 2 | . . 2 Siege Activations . | . . . Robots Corrupted . | . . . Combat Hostiles . | . . . Parts Fried 1 | . 1 . Impact Corruptions . | . . . Robots Melted 2 | . . 2 Combat Hostiles 2 | . . 2 Parts Melted 5 | . 2 3 Heat Transferred 1702 | . 555 1147 Parts Sabotaged . | . . . Parts Stolen . | . . . Parts Stripped . | . . . Power Chain Reactions . | . . . Alert | -11 -10 -10 ------- Run | Yrd Mat Min Peak Influence 236 | . 236 176 Initial 61 | . . 61 Average 71 | . 102 47 Maximum Alert Level 1 | . 1 . Low Security (%) 96 | 100 91 100 Level 1 3 | . 8 . Level 2 . | . . . Level 3 . | . . . Level 4 . | . . . Level 5 . | . . . High Security . | . . . Max Security . | . . . Squads Dispatched 3 | . 3 . Investigation 1 | . 1 . Extermination . | . . . Reinforcement 2 | . 2 . Assault . | . . . Garrison . | . . . Intercept . | . . . Searches Triggered . | . . . Construction Impeded . | . . . Haulers Reinforced . | . . . Active Scanning Responses . | . . . Cargo Convoy Interrupts . | . . . Stealth | -11 -10 -10 --------- Run | Yrd Mat Min Distress Signals 1 | . 1 . Communications Jammed . | . . . Distress Signals . | . . . Times Spotted 25 | . 17 8 Peak Tracking Total 4 | . 4 3 Tactical Retreats . | . . . Traps | -11 -10 -10 ------- Run | Yrd Mat Min Traps Triggered 4 | . 4 . Indirectly . | . . . Trap Hack Attempts . | . . . Triggered . | . . . Disarmed . | . . . Reprogrammed . | . . . Reused . | . . . Traps Extracted . | . . . Installed . | . . . Triggered . | . . . Machines | -11 -10 -10 ---------- Run | Yrd Mat Min Machines Disabled 3 | . 2 1 Max in Single Turn 1 | . 1 1 Machines Repaired . | . . . Machines Dismantled . | . . . Machines Sabotaged . | . . . Overloaded Fab Kills . | . . . Hacking | -11 -10 -10 --------- Run | Yrd Mat Min Machines Accessed . | . . . Terminals . | . . . Fabricators . | . . . Repair Stations . | . . . Recycling Units . | . . . Scanalyzers . | . . . Garrison Access . | . . . Total Hacks . | . . . Successful . | . . . Failed . | . . . Catastrophic . | . . . Database Lockouts . | . . . Manual . | . . . Terminals . | . . . Fabricators . | . . . Repair Stations . | . . . Recycling Units . | . . . Scanalyzers . | . . . Garrison Access . | . . . Terminal Hacks . | . . . Fabricator Hacks . | . . . Repair Station Hacks . | . . . Recycling Unit Hacks . | . . . Scanalyzer . | . . . Garrison Access Hacks . | . . . Unauthorized Hacks . | . . . Terminals . | . . . Fabricators . | . . . Repair Stations . | . . . Recycling Units . | . . . Scanalyzers . | . . . Garrison Access . | . . . Data Cores Recovered . | . . . Used . | . . . Hacking Detections . | . . . Full Trace Events . | . . . Feedback Events . | . . . Feedback Blocked . | . . . Robot Schematics Acquired . | . . . Robots Built . | . . . Authchips . | . . . Time . | . . . Total Robot Build Rating . | . . . Part Schematics Acquired . | . . . Parts Built . | . . . Authchips . | . . . Time . | . . . Total Part Build Rating . | . . . Parts Repaired . | . . . Time . | . . . Parts Recycled . | . . . Recycled Matter . | . . . Retrieved Matter . | . . . Retrieved Components . | . . . Parts Scanalyzed . | . . . Part Schematics Acquired . | . . . Parts Damaged . | . . . Bothacking | -11 -10 -10 ------------ Run | Yrd Mat Min Used RIF Installer . | . . . Robots Hacked . | . . . Non-combat . | . . . Combat . | . . . Robot Hacks Applied . | . . . Relay Couplers Released . | . . . Fabnet Peak Effective % . | . . . Robots Rewired . | . . . Allies Hacked . | . . . Hacks Repelled . | . . . Allies | -11 -10 -10 -------- Run | Yrd Mat Min Total Allies . | . . . Largest Group . | . . . Highest-Rated Group . | . . . Highest-Rated Ally . | . . . Total Orders . | . . . Ally Attacks . | . . . Total Damage . | . . . Kills . | . . . Allies Corrupted . | . . . Allies Melted . | . . . Intel | -11 -10 -10 ------- Run | Yrd Mat Min Robot Analysis Total . | . . . Derelict Logs Recovered 3 | . . 3 Drone Launches . | . . . Drone Recoveries . | . . . Exploration | -11 -10 -10 ------------- Run | Yrd Mat Min Turns Passed 2482 | 89 1144 1249 Spaces Moved 1419 | 49 666 704 Core 7 | 6 1 . Treads 142 | 43 76 23 Legs . | . . . Wheels 1270 | . 589 681 Hover . | . . . Flight . | . . . Fastest Speed 50 | 50 135 135 Average Speed 153 | 146 141 165 Slowest Speed 1450 | 160 1450 320 Overloaded Moves . | . . . Propulsion Burnouts . | . . . Robots Hopped . | . . . Cave-ins Triggered . | . . . Exploration Rate (%) 64 | 4 95 95 Regions Visited 2 Branch Regions 1 Pre-discovered Areas . | . . . Known Exits Taken . | . . . Unknown Exits Taken 2 | 1 1 . Scrap Searched 1 | . . 1 Spaces Dug . | . . . Terrain Destroyed 80 | . 80 . Melee . | . . . Projectile . | . . . AOE 80 | . 80 . Terrain Rammed . | . . . Walls Destroyed . | . . . Machines Disabled . | . . . Actions | -11 -10 -10 --------- Run | Yrd Mat Min Total 1587 | 66 773 748 Wait 14 | . 10 4 Move 1417 | 48 665 704 Hop . | . . . Pick Up 50 | 12 28 10 Fast Attach . | . . . Attach 21 | 6 13 2 Detach . | . . . Swap 12 | . 7 5 Drop 1 | . . 1 Fire 72 | . 50 22 Melee . | . . . Ram . | . . . Kick . | . . . Crush . | . . . Escape Stasis . | . . . Rewire . | . . . Trap . | . . . Miscellaneous . | . . . Route ------- -11/Scrapyard -10/Materials (discovered 4 exits: [*Mat x3] / [*Min]) -10/Mines (discovered 2 exits: [*Mat x2]) History --------- Turn | Location | Event 5 | -11/Scrapyard | Discovered new exit (range 16) 90 | -11/Scrapyard | Entered Materials 301 | -10/Materials | Build established: Mutant 385 | -10/Materials | Discovered new exit (range 7) 738 | -10/Materials | Discovered new exit (range 16) 787 | -10/Materials | Core integrity fell below 50% 877 | -10/Materials | Discovered new exit (range 10) 966 | -10/Materials | Lost 4 parts (1p1n2w) 1074 | -10/Materials | Discovered new exit (range 15) 1234 | -10/Materials | Entered Mines 1320 | -10/Mines | Learned location of 1 exit from Materials 1344 | -10/Mines | Core integrity fell below 20% 1452 | -10/Mines | Discovered new exit (range 14) 1602 | -10/Mines | Learned Materials interactive machine intel 1810 | -10/Mines | Discovered new exit (range 14) 2483 | -10/Mines | Core destroyed Last Messages --------------- K-01 Serf destroyed. Overheating: Energy bleed (-13). S-10 Pest destroyed. Wheel broken. Overheating: Short circuit. Acquired 11 matter. Overheating: Lgt. Ion Engine damaged (-8). Acquired Lgt. Treads. Acquired 28 matter. Acquired 13 matter. Acquired 15 matter. Extracted 74 matter. Acquired Lgt. Assault Rifle. Acquired Wheel. Dropped Broken Wheel. Acquired Wheel. K-01 Serf collects debris. Acquired 7 matter. K-01 Serf collects debris. Slammed into U-05 Engineer. Map ----- +----------------------------------------------------+ | #??????????## #?## ##### #??????? | | #???????????### ## #??###???## #??????? | | #?????????????# ## #????????# ##??????? | | ##????????????# ## #???????## #???????? | | ##???????????# ## ######### ##??????? | | #???????????# ## < ##?????? | | #???????????# ## ##????? | | # #???????????# ############## ##???? | | # #???????????# ### #???? | | #???????????############## #?## #???? | | ##????????????????????????# #??## #???? | | ##??####??????????????????# #???## !###?? | | #### ##?????????????????# #????#*= #?? | | #???????????####### #????#! #?? | | #???????????# #????###! #?? | | ##???????????# #??????# #?? | | ##????????????## ### ######?#==#?? | | ## #??????????????# ### #?# #?? | | #### #?????????????## ####### #?# #?? | | #### ####??????????# ##????# #?# =#?? | | ## #?????????## #????# #?# #?? | | ## #??######## #??### ### ##? | | ## #### #?## ## #? | | ## #### #? | | ## ###### ###### ### ##? | | #### #???# #????## @ ### ## ##?? | | ##??# ##### #?????##u### #### ##??? | | #???# #??????# ##?####???? | | #???## ############### #### #######??? | | ##????####?????# ### ##?? | | ##??????????????# #?# #?? | | #???????????????# #?# #?? | | ???###########??# """" "" " #?## #?? | | ???# #??# """" """" #??## #?? | | ???# """ """ #??# """" """" #??## #?? | | ???# """ """ #???############??# #?? | | ???# """ """ #?????????????????# ##?? | | ???# #???????#####?????# #??? | | ???# #??????## ##????## ##??? | | ???# #??????# #?????##### #???? | | ???# #??????# #?????????# #???? | | ???####### ###??????# #???###???# #???? | | ?????????# #???????## #????# ##??# #???? | | ?????????# #???##### #?????# #??# #???? | | ?????????# #??## ##????# #??# #???? | | ?????????# #?## #???## ##?# #???? | | ?????????# #?# < ##### ### #???? | | ?????????# ### ## #???? | | ?????????# ## ##???? | | ?????????# ### #????? | +----------------------------------------------------+ Best States ------------- Heat Dissipation 25 Energy Generation 14 Energy Capacity 250 Matter Stores 335 Matter Capacity 450 Sight Range 16 Terrain Scan Density 10 Evasion (%) 40 Recoil Reduction 2 Item Schematics ----------------- None Robot Schematics ------------------ None Fabricated ------------ Nothing Alien Tech Used ----------------- None Achievements -------------- It's Just You Challenges ------------ None Game ------ Seed LightningLatentTendrils Manual? 0 Play Time 00:19:20 Cumulative 5.7 hours Start 2024.04.01 @ 19:55:01 End 2024.04.01 @ 20:12:17 Sessions 1 Manual Loads 0 Difficulty Rogue Special Mode None Game No. 18 Rogue 18 Adventurer 0 Explorer 0 Win Type - Total 0 Types 0/0/0/0/0/0/0/0/0 Lore% 12 Gallery% 7 Achievement% 7 Wizard Run 0 Options --------- Layout 1 ASCII 0 Keyboard 0 Movement Mouse Keybinds 0 Fullscreen 2 Font 24/Proggy Map View 50x35 Zoom Use 0% Tactical HUD 0 Map Filters NONE Filters NONE Steam 1 RUN: 1f733a2a-319c-4257-9cad-98bc4cbd5f56